fUST/lending_fUST_20250822
["ID","MTS","AMOUNT","RATE_DAILY","PERIOD"]
[380550286,1755807049476,-1000.0,0.000207,2]
[380550288,1755807049485,-1000.0,0.000207,2]
[380550290,1755807049494,-1000.0,0.000207,2]
[380550292,1755807049503,-1000.0,0.000207,2]
[380550293,1755807049512,-1000.0,0.000207,2]
[380550294,1755807049520,-1000.0,0.000207,2]
[380550295,1755807049529,-689.609779,0.000207,2]
[380550296,1755807049539,-151.0,0.000207,2]
[380550297,1755807049548,-151.0,0.000207,2]
[380550298,1755807049557,-161.94808,0.000207,2]
[380550299,1755807049567,-161.94808,0.000207,2]
[380550300,1755807049576,-161.94808,0.000207,2]
[380550301,1755807049585,-161.94808,0.000207,2]
[380550302,1755807049595,-161.94808,0.000207,2]
[380550303,1755807049604,-161.94808,0.000207,2]
[380550304,1755807049614,-161.94808,0.000207,2]
[380550305,1755807049623,-161.94808,0.000207,2]
[380550306,1755807049633,-151.0,0.000207,2]
[380550307,1755807049642,-151.0,0.000207,2]
[380550308,1755807049652,-151.0,0.000207,2]
[380550309,1755807049662,-151.0,0.000207,2]
[380550310,1755807049671,-217.997536,0.000207,2]
[380550311,1755807049681,-151.0,0.000207,2]
[380550312,1755807049690,-151.0,0.000207,2]
[380550313,1755807049699,-277.623336,0.000207,2]
[380550314,1755807049709,-151.0,0.000207,2]
[380550315,1755807049719,-151.0,0.000207,2]
[380550316,1755807049728,-151.0,0.000207,2]
[380550317,1755807049737,-151.0,0.000207,2]
[380550318,1755807049746,-151.0,0.000207,2]
[380550319,1755807049756,-151.0,0.000207,2]
[380550320,1755807049767,-151.0,0.000207,2]
[380550321,1755807049776,-151.0,0.000207,2]
[380550322,1755807049785,-151.0,0.000207,2]
[380550323,1755807049794,-151.0,0.000207,2]
[380550324,1755807049803,-151.0,0.000207,2]
[380550325,1755807049813,-151.0,0.000207,2]
[380550326,1755807049822,-1246.566901,0.000207,2]
[380550327,1755807049831,-1246.566901,0.000207,2]
[380550328,1755807049840,-404.779857,0.000207,2]
[380550329,1755807049850,-404.779857,0.000207,2]
[380550330,1755807049860,-1246.566901,0.000207,2]
[380550331,1755807049869,-1246.566901,0.000207,2]
[380550332,1755807049878,-404.779857,0.000207,2]
[380550333,1755807049888,-404.779857,0.000207,2]
[380550334,1755807049897,-1246.566901,0.000207,2]
[380550335,1755807049906,-1246.566901,0.000207,2]
[380550336,1755807049915,-151.0,0.000207,2]
[380550337,1755807049924,-404.779857,0.000207,2]
[380550338,1755807049933,-151.0,0.000207,2]
[380550339,1755807049942,-404.779857,0.000207,2]
[380550340,1755807049951,-1246.566901,0.000207,2]
[380550341,1755807049960,-404.779857,0.000207,2]
[380550342,1755807049976,-1246.566901,0.000207,2]
[380550343,1755807049986,-404.779857,0.000207,2]
[380550344,1755807049995,-151.0,0.000207,2]
[380550345,1755807050007,-151.0,0.000207,2]
[380550346,1755807050026,-151.0,0.000207,2]
[380550347,1755807050035,-151.0,0.000207,2]
[380550348,1755807050044,-151.0,0.000207,2]
[380550349,1755807050054,-151.0,0.000207,2]
[380550350,1755807050063,-151.0,0.000207,2]
[380550351,1755807050072,-151.0,0.000207,2]
[380550352,1755807050081,-151.0,0.000207,2]
[380550353,1755807050090,-235.0,0.000207,2]
[380550354,1755807050099,-423.329657,0.000207,2]
[380550355,1755807050109,-423.329657,0.000207,2]
[380550356,1755807050118,-423.329657,0.000207,2]
[380550357,1755807050127,-423.329657,0.000207,2]
[380550358,1755807050137,-197.399964,0.000207,2]
[380550359,1755807050147,-197.399964,0.000207,2]
[380550360,1755807050156,-423.329657,0.000207,2]
[380550361,1755807050165,-423.329657,0.000207,2]
[380550362,1755807050174,-197.399964,0.000207,2]
[380550363,1755807050184,-197.399964,0.000207,2]
[380550364,1755807050194,-423.329657,0.000207,2]
[380550365,1755807050203,-423.329657,0.000207,2]
[380550366,1755807050212,-197.399964,0.000207,2]
[380550367,1755807050222,-197.399964,0.000207,2]
[380550368,1755807050232,-151.0,0.000207,2]
[380550369,1755807050241,-151.0,0.000207,2]
[380550370,1755807050250,-197.399964,0.000207,2]
[380550371,1755807050260,-197.399964,0.000207,2]
[380550372,1755807050269,-151.0,0.000207,2]
[380550373,1755807050278,-151.0,0.000207,2]
[380550374,1755807050287,-151.0,0.000207,2]
[380550375,1755807050295,-151.0,0.000207,2]
[380550376,1755807050304,-181.133621,0.000207,2]
[380550377,1755807050314,-181.133621,0.000207,2]
[380550378,1755807050323,-181.133621,0.000207,2]
[380550379,1755807050332,-181.133621,0.000207,2]
[380550380,1755807050341,-181.133621,0.000207,2]
[380550381,1755807050463,-181.133621,0.000207,2]
[380550382,1755807050473,-181.133621,0.000207,2]
[380550383,1755807050483,-181.133621,0.000207,2]
[380550384,1755807050492,-192.541867,0.000207,2]
[380550385,1755807050500,-192.541867,0.000207,2]
[380550386,1755807050510,-192.541867,0.000207,2]
[380550387,1755807050519,-192.541867,0.000207,2]
[380550388,1755807050529,-192.541867,0.000207,2]
[380550389,1755807050538,-192.541867,0.000207,2]
[380550390,1755807050547,-151.0,0.000207,2]
[380550391,1755807050556,-151.0,0.000207,2]
[380550392,1755807050566,-192.541867,0.000207,2]
[380550393,1755807050575,-192.541867,0.000207,2]
[380550394,1755807050584,-151.0,0.000207,2]
[380550395,1755807050594,-151.0,0.000207,2]
[380550396,1755807050603,-151.0,0.000207,2]
[380550397,1755807050613,-151.0,0.000207,2]
[380550398,1755807050623,-212.003252,0.000207,2]
[380550399,1755807050633,-212.003252,0.000207,2]
[380550400,1755807050643,-212.003252,0.000207,2]
[380550401,1755807050652,-212.003252,0.000207,2]
[380550402,1755807050661,-212.003252,0.000207,2]
[380550403,1755807050671,-212.003252,0.000207,2]
[380550404,1755807050680,-212.003252,0.000207,2]
[380550405,1755807050689,-212.003252,0.000207,2]
[380550406,1755807050698,-152.778142,0.000207,2]
[380550407,1755807050707,-326.0,0.000207,2]
[380550408,1755807050717,-1344.476836,0.000207,2]
[380550409,1755807050727,-1344.476836,0.000207,2]
[380550410,1755807050737,-1344.476836,0.000207,2]
[380550411,1755807050746,-1344.476836,0.000207,2]
[380550412,1755807050755,-1344.476836,0.000207,2]
[380550413,1755807050768,-1344.476836,0.000207,2]
[380550414,1755807050778,-1344.476836,0.000207,2]
[380550415,1755807050787,-1344.476836,0.000207,2]
[380550416,1755807050796,-212.34662226,0.00020707,2]
[380550417,1755807050807,-160.0,0.00020709,2]
[380550418,1755807050817,-800.0,0.00020739,2]
[380550420,1755807050827,-2562.05271479,0.00020754,2]
[380550421,1755807050836,-152.58231,0.00020778,8]
[380550423,1755807050846,-152.58231,0.00020799,7]
[380550425,1755807050856,-1000.0,0.000208,2]
[380550427,1755807050865,-1545.16,0.00020812,3]
[380550429,1755807050875,-772.58,0.00020812,3]
[380550431,1755807050884,-386.3,0.00020812,3]
[380550433,1755807050893,-1728.24,0.00020812,3]
[380550435,1755807050902,-1344.2,0.00020812,3]
[380550437,1755807050911,-672.1,0.00020812,3]
[380550439,1755807050920,-672.1,0.00020812,3]
[380550441,1755807050929,-528.88070896,0.00020812,3]
[380550443,1755807050939,-480.0,0.00020821,2]
[380550444,1755807050947,-480.0,0.00020821,2]
[380550446,1755807050957,-227.99,0.00020821,2]
[380550447,1755807050966,-542.5,0.00020821,2]
[380550448,1755807050976,-522.37,0.00020821,2]
[380550449,1755807050985,-480.0,0.00020821,2]
[380550450,1755807050994,-480.0,0.00020821,2]
[380550451,1755807051004,-480.0,0.00020821,2]
[380550452,1755807051013,-558.5,0.00020821,2]
[380550453,1755807051023,-684.61,0.00020821,2]
[380550454,1755807051033,-480.0,0.00020821,2]
[380550455,1755807051042,-601.98,0.00020821,2]
[380550456,1755807051051,-480.0,0.00020821,2]
[380550457,1755807051060,-297.93337204,0.00020821,2]
[380550458,1755807051071,-480.0,0.00020821,2]
[380550460,1755807051081,-1194.3,0.00020821,2]
[380550462,1755807051090,-319.53,0.00020821,2]
[380550464,1755807051099,-953.56,0.00020821,2]
[380550466,1755807051108,-2888.87,0.00020821,2]
[380550468,1755807051118,-480.0,0.00020821,2]
[380550470,1755807051127,-480.0,0.00020821,2]
[380550472,1755807051137,-480.0,0.00020821,2]
[380550474,1755807051147,-1121.23,0.00020821,2]
[380550476,1755807051156,-484.79,0.00020821,2]
[380550478,1755807051165,-588.45,0.00020821,2]
[380550480,1755807051175,-641.41,0.00020821,2]
[380550482,1755807051184,-648.6,0.00020821,2]
[380550484,1755807051194,-528.71,0.00020821,2]
[380550486,1755807051203,-5434.25,0.00020821,2]
[380550488,1755807051213,-551.65,0.00020821,2]
[380550489,1755807051222,-457.76415811,0.00020821,2]
[380550491,1755807051231,-480.0,0.00020821,2]
[380550493,1755807051241,-503.55,0.00020821,2]
[380550495,1755807051251,-2049.4,0.00020821,2]
[380550497,1755807051260,-785.98,0.00020821,2]
[380550499,1755807051269,-518.17,0.00020821,2]
[380550501,1755807051279,-2290.87,0.00020821,2]
[380550503,1755807051288,-1692.72,0.00020821,2]
[380550505,1755807051297,-1356.2,0.00020821,2]
[380550506,1755807051308,-480.0,0.00020821,2]
[380550507,1755807051318,-5659.8,0.00020821,2]
[380550509,1755807051328,-1141.27,0.00020821,2]
[380550510,1755807051337,-1890.58,0.00020821,2]
[380550511,1755807051347,-1023.17,0.00020821,2]
[380550512,1755807051356,-480.0,0.00020821,2]
[380550513,1755807051365,-480.0,0.00020821,2]
[380550514,1755807051375,-480.0,0.00020821,2]
[380550515,1755807051384,-480.0,0.00020821,2]
[380550516,1755807051393,-480.0,0.00020821,2]
[380550517,1755807051403,-480.0,0.00020821,2]
[380550518,1755807051412,-480.0,0.00020821,2]
[380550519,1755807051422,-1471.06,0.00020821,2]
[380550520,1755807051431,-480.0,0.00020821,2]
[380550521,1755807051441,-480.0,0.00020821,2]
[380550522,1755807051450,-1189.57,0.00020821,2]
[380550523,1755807051459,-555.49,0.00020821,2]
[380550524,1755807051469,-498.58,0.00020821,2]
[380550525,1755807051480,-1756.76,0.00020821,2]
[380550526,1755807051491,-519.77,0.00020821,2]
[380550527,1755807051500,-480.0,0.00020821,2]
[380550528,1755807051510,-404.98,0.00020821,2]
[380550529,1755807051519,-480.0,0.00020821,2]
[380550530,1755807051528,-4189.69,0.00020821,2]
[380550531,1755807051537,-480.0,0.00020821,2]
[380550532,1755807051547,-1642.55,0.00020821,2]
[380550533,1755807051556,-609.2,0.00020821,2]
[380550534,1755807051566,-480.0,0.00020821,2]
[380550535,1755807051575,-480.0,0.00020821,2]
[380550536,1755807051585,-480.0,0.00020821,2]
[380550537,1755807051595,-607.77,0.00020821,2]
[380550538,1755807051605,-318.4688872,0.00020821,2]
[380550539,1755807051614,-245.0,0.00020822,2]
[380550540,1755807051624,-823.0,0.00020822,2]
[380550541,1755807051633,-151.0,0.00020822,2]
[380550542,1755807051642,-151.0,0.00020822,2]
[380550543,1755807051652,-152.86277154,0.00020822,2]
[380550544,1755807051661,-151.0,0.00020822,2]
[380550545,1755807051671,-500.0,0.00020822,2]
[380550546,1755807051680,-500.0,0.00020822,2]
[380550547,1755807051689,-200.2887846,0.00020822,2]
[380550548,1755807051698,-176.03762668,0.00020822,2]
[380550549,1755807051712,-151.0,0.00020822,2]
[380550550,1755807051728,-500.0,0.00020822,2]
[380550551,1755807051742,-500.0,0.00020822,2]
[380550552,1755807051754,-151.0,0.00020822,2]
[380550553,1755807051770,-151.0,0.00020822,2]
[380550554,1755807051784,-9048.57023555,0.00020835,2]
[380550555,1755807051800,-152.58231,0.00020839,10]
[380550556,1755807051813,-800.0,0.00020841,2]
[380550557,1755807051827,-152.58231,0.00020846,3]
[380550558,1755807051841,-700.0,0.00020868,2]
[380550559,1755807051854,-168.0,0.00020871,2]
[380550560,1755807051868,-800.0,0.00020883,2]
[380550561,1755807051881,-420.0,0.00020899,2]
[380550562,1755807051893,-420.0,0.00020899,2]
[380550563,1755807051906,-151.0,0.000209,4]
[380550564,1755807051919,-800.0,0.00020967,2]
[380550565,1755807051931,-800.0,0.00020973,2]
[380550566,1755807051947,-2036.70485734,0.00020995,2]
[380550567,1755807051959,-25680.89299818,0.00020998,2]
[380550568,1755807051971,-513.39883272,0.00021,2]
[380550569,1755807051982,-151.0,0.00021,4]
[380550570,1755807051993,-1680.0,0.00021,2]
[380550571,1755807052005,-11448.72490966,0.00021001,5]
[380550572,1755807052017,-1344.476836,0.00021001,2]
[380550573,1755807052030,-1344.476836,0.00021001,2]
[380550574,1755807052044,-1344.476836,0.00021001,2]
[380550575,1755807052056,-1344.476836,0.00021001,2]
[380550576,1755807052071,-1500.0,0.00021027,2]
[380550577,1755807052084,-1500.0,0.00021027,2]
[380550578,1755807052097,-800.0,0.00021044,2]
[380550579,1755807052111,-158.47,0.00021095,2]
[380550580,1755807052122,-480.0,0.00021095,2]
[380550581,1755807052133,-542.5,0.00021095,2]
[380550582,1755807052143,-522.37,0.00021095,2]
[380550583,1755807052155,-480.0,0.00021095,2]
[380550584,1755807052170,-151.0,0.00021095,2]
[380550585,1755807052185,-203.370422,0.00021095,2]
[380550586,1755807052196,-151.0,0.00021095,2]
[380550587,1755807052207,-151.0,0.00021095,2]
[380550588,1755807052219,-151.0,0.00021095,2]
[380550589,1755807052233,-151.0,0.00021095,2]
[380550590,1755807052244,-480.0,0.00021095,2]
[380550591,1755807052255,-166.5253,0.00021095,2]
[380550592,1755807052266,-166.5253,0.00021095,2]
[380550593,1755807052276,-166.5253,0.00021095,2]
[380550594,1755807052288,-166.5253,0.00021095,2]
[380550595,1755807052299,-151.0,0.00021095,2]
[380550596,1755807052311,-480.0,0.00021095,2]
[380550597,1755807052323,-558.5,0.00021095,2]
[380550598,1755807052335,-684.61,0.00021095,2]
[380550599,1755807052346,-151.0,0.00021095,2]
[380550600,1755807052357,-480.0,0.00021095,2]
[380550601,1755807052367,-601.98,0.00021095,2]
[380550602,1755807052378,-550.2,0.00021095,2]
[380550603,1755807052390,-151.0,0.00021095,2]
[380550604,1755807052401,-151.0,0.00021095,2]
[380550605,1755807052412,-151.0,0.00021095,2]
[380550606,1755807052423,-151.0,0.00021095,2]
[380550607,1755807052434,-480.0,0.00021095,2]
[380550608,1755807052446,-1194.3,0.00021095,2]
[380550609,1755807052457,-151.0,0.00021095,2]
[380550610,1755807052468,-161.94808,0.00021095,2]
[380550612,1755807052479,-161.94808,0.00021095,2]
[380550614,1755807052490,-161.94808,0.00021095,2]
[380550617,1755807052502,-161.94808,0.00021095,2]
[380550619,1755807052513,-953.56,0.00021095,2]
[380550621,1755807052523,-151.0,0.00021095,2]
[380550623,1755807052534,-151.0,0.00021095,2]
[380550625,1755807052545,-2888.87,0.00021095,2]
[380550628,1755807052556,-480.0,0.00021095,2]
[380550630,1755807052567,-535.03,0.00021095,2]
[380550632,1755807052578,-480.0,0.00021095,2]
[380550634,1755807052588,-151.0,0.00021095,2]
[380550636,1755807052600,-1121.23,0.00021095,2]
[380550639,1755807052611,-484.79,0.00021095,2]
[380550641,1755807052622,-151.0,0.00021095,2]
[380550643,1755807052634,-641.41,0.00021095,2]
[380550645,1755807052645,-648.6,0.00021095,2]
[380550647,1755807052656,-191.098864,0.00021095,2]
[380550649,1755807052668,-528.71,0.00021095,2]
[380550652,1755807052679,-151.0,0.00021095,2]
[380550654,1755807052692,-5434.25,0.00021095,2]
[380550656,1755807052702,-551.65,0.00021095,2]
[380550658,1755807052713,-480.0,0.00021095,2]
[380550660,1755807052724,-503.55,0.00021095,2]
[380550663,1755807052735,-2049.4,0.00021095,2]
[380550665,1755807052747,-785.98,0.00021095,2]
[380550667,1755807052759,-518.17,0.00021095,2]
[380550669,1755807052774,-1246.566901,0.00021095,2]
[380550672,1755807052785,-404.779857,0.00021095,2]
[380550674,1755807052799,-2290.87,0.00021095,2]
[380550676,1755807052811,-1246.566901,0.00021095,2]
[380550678,1755807052825,-404.779857,0.00021095,2]
[380550680,1755807052837,-1246.566901,0.00021095,2]
[380550681,1755807052849,-404.779857,0.00021095,2]
[380550682,1755807052860,-1246.566901,0.00021095,2]
[380550683,1755807052872,-404.779857,0.00021095,2]
[380550684,1755807052883,-1692.72,0.00021095,2]
[380550685,1755807052896,-1356.2,0.00021095,2]
[380550686,1755807052907,-480.0,0.00021095,2]
[380550687,1755807052918,-5659.8,0.00021095,2]
[380550688,1755807052930,-151.0,0.00021095,2]
[380550689,1755807052943,-151.0,0.00021095,2]
[380550691,1755807052953,-151.0,0.00021095,2]
[380550693,1755807052964,-151.0,0.00021095,2]
[380550695,1755807052975,-1141.27,0.00021095,2]
[380550697,1755807052987,-423.329657,0.00021095,2]
[380550698,1755807052998,-423.329657,0.00021095,2]
[380550700,1755807053010,-197.399964,0.00021095,2]
[380550703,1755807053021,-423.329657,0.00021095,2]
[380550705,1755807053032,-197.399964,0.00021095,2]
[380550707,1755807053044,-1890.58,0.00021095,2]
[380550709,1755807053055,-423.329657,0.00021095,2]
[380550712,1755807053068,-197.399964,0.00021095,2]
[380550714,1755807053079,-151.0,0.00021095,2]
[380550715,1755807053091,-197.399964,0.00021095,2]
[380550716,1755807053102,-151.0,0.00021095,2]
[380550717,1755807053114,-1023.17,0.00021095,2]
[380550718,1755807053125,-156.309803,0.00021095,2]
[380550719,1755807053137,-480.0,0.00021095,2]
[380550720,1755807053150,-480.0,0.00021095,2]
[380550721,1755807053161,-480.0,0.00021095,2]
[380550722,1755807053172,-165.38,0.00021095,2]
[380550723,1755807053184,-181.133621,0.00021095,2]
[380550724,1755807053196,-181.133621,0.00021095,2]
[380550725,1755807053207,-181.133621,0.00021095,2]
[380550726,1755807053217,-390.99892337,0.00021095,2]
[380550727,1755807053227,-181.133621,0.00021095,2]
[380550728,1755807053413,-480.0,0.00021095,2]
[380550729,1755807053423,-192.541867,0.00021095,2]
[380550730,1755807053431,-192.541867,0.00021095,2]
[380550731,1755807053441,-480.0,0.00021095,2]
[380550732,1755807053450,-192.541867,0.00021095,2]
[380550733,1755807053459,-151.0,0.00021095,2]
[380550734,1755807053468,-192.541867,0.00021095,2]
[380550735,1755807053477,-151.0,0.00021095,2]
[380550736,1755807053487,-151.0,0.00021095,2]
[380550737,1755807053497,-1471.06,0.00021095,2]
[380550738,1755807053506,-212.003252,0.00021095,2]
[380550739,1755807053515,-480.0,0.00021095,2]
[380550740,1755807053525,-480.0,0.00021095,2]
[380550741,1755807053534,-212.003252,0.00021095,2]
[380550742,1755807053543,-212.003252,0.00021095,2]
[380550743,1755807053552,-212.003252,0.00021095,2]
[380550744,1755807053562,-1189.57,0.00021095,2]
[380550745,1755807053572,-555.49,0.00021095,2]
[380550746,1755807053582,-498.58,0.00021095,2]
[380550747,1755807053591,-1756.76,0.00021095,2]
[380550748,1755807053601,-519.77,0.00021095,2]
[380550749,1755807053610,-480.0,0.00021095,2]
[380550750,1755807053620,-480.0,0.00021095,2]
[380550751,1755807053630,-4189.69,0.00021095,2]
[380550752,1755807053639,-177.07,0.00021095,2]
[380550753,1755807053648,-1642.55,0.00021095,2]
[380550754,1755807053658,-609.2,0.00021095,2]
[380550755,1755807053667,-480.0,0.00021095,2]
[380550756,1755807053677,-480.0,0.00021095,2]
[380550757,1755807053686,-480.0,0.00021095,2]
[380550758,1755807053695,-607.77,0.00021095,2]
[380550759,1755807053705,-823.0,0.00021096,2]
[380550760,1755807053715,-198.0,0.00021096,2]
[380550761,1755807053724,-151.0,0.00021096,2]
[380550762,1755807053734,-500.0,0.00021096,2]
[380550763,1755807053743,-500.0,0.00021096,2]
[380550764,1755807053753,-151.0,0.00021096,2]
[380550765,1755807053762,-500.0,0.00021096,2]
[380550766,1755807053775,-500.0,0.00021096,2]
[380550767,1755807053786,-151.0,0.00021096,2]
[380550768,1755807053796,-151.0,0.00021096,2]
[380550769,1755807053807,-199.0,0.000211,30]
[380550770,1755807053817,-800.0,0.000211,2]
[380550771,1755807053828,-800.0,0.00021106,2]
[380550772,1755807053837,-275.0,0.00021148,2]
[380550773,1755807053847,-151.0,0.00021172,2]
[380550774,1755807053856,-151.0,0.00021172,2]
[380550775,1755807053865,-151.0,0.00021172,2]
[380550776,1755807053875,-151.0,0.00021172,2]
[380550777,1755807053884,-151.0,0.00021172,2]
[380550778,1755807053893,-326.79610947,0.00021179,2]
[380550779,1755807053903,-326.79610947,0.00021179,2]
[380550780,1755807053912,-151.0,0.00021188,2]
[380550781,1755807053922,-660.17333058,0.00021188,2]
[380550782,1755807053931,-6295.11884119,0.000212,30]
[380550783,1755807053940,-151.0,0.000212,4]
[380550784,1755807053949,-500.0,0.00021221,2]
[380550785,1755807053959,-1000.0,0.00021221,2]
[380550786,1755807053969,-1000.0,0.00021221,2]
[380550787,1755807053979,-505.41813531,0.00021221,2]
[380550788,1755807053988,-1000.0,0.00021221,2]
[380550789,1755807053998,-1000.0,0.00021221,2]
[380550790,1755807054007,-500.0,0.00021221,2]
[380550791,1755807054017,-1000.0,0.00021221,2]
[380550792,1755807054027,-212.64944664,0.00021221,2]
[380550793,1755807054037,-1000.0,0.00021221,2]
[380550794,1755807054047,-1000.0,0.00021221,2]
[380550795,1755807054056,-1000.0,0.00021221,2]
[380550796,1755807054066,-503.04797693,0.00021221,2]
[380550797,1755807054077,-804.67883132,0.00021221,2]
[380550798,1755807054086,-1008.93775355,0.00021221,2]
[380550799,1755807054095,-1000.0,0.00021221,2]
[380550800,1755807054104,-502.43706856,0.00021221,2]
[380550801,1755807054114,-1000.0,0.00021221,2]
[380550802,1755807054123,-500.0,0.00021221,2]
[380550803,1755807054132,-500.0,0.00021221,2]
[380550804,1755807054141,-1000.0,0.00021221,2]
[380550805,1755807054152,-260.0,0.00021257,2]
[380550806,1755807054162,-800.0,0.00021259,2]
[380550807,1755807054171,-156.957591,0.00021303,3]
[380550808,1755807054181,-152.58231,0.00021303,3]
[380550809,1755807054190,-152.58231,0.00021303,7]
[380550810,1755807054200,-10098.1446764,0.00021313,2]
[380550811,1755807054209,-800.0,0.00021323,2]
[380550812,1755807054219,-151.0,0.00021348,2]
[380550813,1755807054228,-196.0,0.00021361,2]
[380550814,1755807054237,-154.555483,0.00021369,2]
[380550816,1755807054247,-151.0,0.00021369,2]
[380550817,1755807054256,-356.09,0.00021369,2]
[380550818,1755807054265,-542.5,0.00021369,2]
[380550819,1755807054274,-522.37,0.00021369,2]
[380550820,1755807054284,-480.0,0.00021369,2]
[380550821,1755807054293,-480.0,0.00021369,2]
[380550822,1755807054303,-480.0,0.00021369,2]
[380550823,1755807054313,-558.5,0.00021369,2]
[380550824,1755807054324,-684.61,0.00021369,2]
[380550825,1755807054334,-480.0,0.00021369,2]
[380550826,1755807054344,-601.98,0.00021369,2]
[380550827,1755807054353,-585.41,0.00021369,2]
[380550828,1755807054363,-1194.3,0.00021369,2]
[380550829,1755807054372,-953.56,0.00021369,2]
[380550830,1755807054381,-2888.87,0.00021369,2]
[380550831,1755807054391,-480.0,0.00021369,2]
[380550832,1755807054400,-480.0,0.00021369,2]
[380550833,1755807054410,-1121.23,0.00021369,2]
[380550834,1755807054419,-484.79,0.00021369,2]
[380550835,1755807054429,-641.41,0.00021369,2]
[380550836,1755807054439,-648.6,0.00021369,2]
[380550837,1755807054448,-528.71,0.00021369,2]
[380550838,1755807054458,-5434.25,0.00021369,2]
[380550839,1755807054467,-551.65,0.00021369,2]
[380550840,1755807054476,-480.0,0.00021369,2]
[380550841,1755807054486,-503.55,0.00021369,2]
[380550842,1755807054495,-2049.4,0.00021369,2]
[380550843,1755807054505,-785.98,0.00021369,2]
[380550844,1755807054515,-518.17,0.00021369,2]
[380550845,1755807054525,-2290.87,0.00021369,2]
[380550846,1755807054534,-1692.72,0.00021369,2]
[380550847,1755807054543,-1356.2,0.00021369,2]
[380550848,1755807054552,-480.0,0.00021369,2]
[380550849,1755807054561,-5659.8,0.00021369,2]
[380550850,1755807054572,-1141.27,0.00021369,2]
[380550851,1755807054582,-1890.58,0.00021369,2]
[380550852,1755807054591,-1023.17,0.00021369,2]
[380550853,1755807054600,-480.0,0.00021369,2]
[380550854,1755807054609,-480.0,0.00021369,2]
[380550855,1755807054618,-480.0,0.00021369,2]
[380550856,1755807054628,-480.0,0.00021369,2]
[380550857,1755807054638,-480.0,0.00021369,2]
[380550858,1755807054655,-1471.06,0.00021369,2]
[380550859,1755807054665,-480.0,0.00021369,2]
[380550860,1755807054675,-480.0,0.00021369,2]
[380550861,1755807054685,-1189.57,0.00021369,2]
[380550862,1755807054694,-555.49,0.00021369,2]
[380550863,1755807054704,-498.58,0.00021369,2]
[380550864,1755807054713,-1756.76,0.00021369,2]
[380550865,1755807054723,-519.77,0.00021369,2]
[380550866,1755807054732,-480.0,0.00021369,2]
[380550867,1755807054742,-480.0,0.00021369,2]
[380550868,1755807054752,-4189.69,0.00021369,2]
[380550869,1755807054762,-1642.55,0.00021369,2]
[380550870,1755807054775,-609.2,0.00021369,2]
[380550871,1755807054784,-224.78,0.00021369,2]
[380550872,1755807054794,-181.86,0.00021369,2]
[380550873,1755807054803,-480.0,0.00021369,2]
[380550874,1755807054814,-607.77,0.00021369,2]
[380550875,1755807054824,-823.0,0.0002137,2]
[380550876,1755807054834,-198.0,0.0002137,2]
[380550877,1755807054843,-500.0,0.0002137,2]